bitfinex-derivatives/quotes_SOLF0:USTF0_20250416
["timestamp","ask_amount","ask_price","bid_price","bid_amount"]
[1744828019341,0.05015342,128.56,128.54,7.83013865]
[1744828019825,0.05015342,128.56,128.54,0.05103865]
[1744828020336,0.05015342,128.56,128.55,7.7789]
[1744828021035,48.18,128.61,128.58,7.777]
[1744828021240,48.18,128.61,128.55,29.31200742]
[1744828021637,52.1075,128.65,128.57,29.31200742]
[1744828021837,52.1075,128.65,128.55,29.31200742]
[1744828022038,52.1075,128.65,128.6,0.05149051]
[1744828022439,48.16,128.65,128.63,7.7739]
[1744828022740,48.16,128.65,128.63,0.05002716]
[1744828023042,107.49378785,128.71,128.64,29.31200742]
[1744828023337,107.49378785,128.71,128.67,29.31200742]
[1744828023543,107.49378785,128.71,128.66,0.05719353]
[1744828023743,107.49378785,128.71,128.67,29.31200742]
[1744828023940,107.49378785,128.71,128.7,7.7698]
[1744828024243,222.414305,128.73,128.69,29.36495325]
[1744828024547,113.95727753,128.74,128.73,7.768]
[1744828024944,109.08429477,128.75,128.73,7.768]
[1744828025440,109.08429477,128.75,128.72,0.05925491]
[1744828025644,109.08429477,128.75,128.72,47.47694915]
[1744828025943,109.08429477,128.75,128.73,7.768]
[1744828026143,109.08429477,128.75,128.72,0.05925491]
[1744828026542,109.08429477,128.75,128.72,47.47694915]
[1744828026739,109.08429477,128.75,128.72,0.05925491]
[1744828027851,7.7678,128.74,128.72,0.05925491]
[1744828028150,60.5012,128.76,128.72,0.05925491]
[1744828028545,47.96,128.81,128.72,0.05925491]
[1744828028752,95.37769424,128.83,128.75,0.05622911]
[1744828028941,47.41769424,128.81,128.78,0.05862663]
[1744828029348,7.7644,128.79,128.78,0.05862663]
[1744828029546,47.96,128.83,128.68,47.96]
[1744828029748,47.41769424,128.8,128.69,47.41769424]
[1744828029946,7.766,128.77,128.69,47.41769424]
[1744828030251,95.37769424,128.77,128.68,4.1658]
[1744828030451,7.7672,128.75,128.71,7.7691]
[1744828030654,0.05661947,128.74,128.71,0.05822369]
[1744828031351,95.35769424,128.83,128.72,47.41769424]
[1744828031551,8.227,128.82,128.72,51.68719424]
[1744828031949,8.227,128.82,128.75,7.7668]
[1744828032154,47.41769424,128.81,128.72,4.2695]
[1744828032350,47.41769424,128.79,128.75,0.05329683]
[1744828032556,47.41769424,128.77,128.66,8.2161]
[1744828032856,4.1537,128.76,128.66,8.2161]
[1744828033056,47.41769424,128.75,128.66,8.2161]
[1744828033355,4.0532,128.75,128.66,8.2161]
[1744828033564,47.94,128.78,128.66,8.2161]
[1744828033745,0.05926749,128.72,128.69,0.05878966]
[1744828034060,7.7698,128.7,128.69,0.05878966]
[1744828034252,47.41769424,128.71,128.62,16.73270036]
[1744828034549,47.94,128.72,128.65,47.41769424]
[1744828035358,0.05348959,128.7,128.67,0.05516558]
[1744828035749,0.05348959,128.7,128.68,7.7709]
[1744828035955,47.94,128.76,128.67,47.47285982]
[1744828036157,559.72,128.79,128.69,47.41769424]
[1744828036355,559.72,128.79,128.68,11.65662329]
[1744828036356,559.72,128.79,128.71,47.41769424]
[1744828036552,559.72,128.79,128.7,7.9095]
[1744828036750,607.13769424,128.79,128.7,7.9095]
[1744828037160,0.04899595,128.76,128.73,0.05649569]
[1744828037361,7.7674,128.74,128.73,0.05649569]
[1744828037558,47.94,128.75,128.73,0.05649569]
[1744828037860,7.7674,128.74,128.73,0.05649569]
[1744828038256,47.94,128.75,128.73,0.05649569]
[1744828038763,47.94,128.75,128.7,16.15402365]
[1744828038764,95.35769424,128.75,128.7,16.15402365]
[1744828038963,47.94,128.75,128.7,16.15402365]
[1744828039755,7.7685,128.73,128.7,16.15402365]
[1744828039961,0.05644152,128.73,128.71,0.05525465]
[1744828040264,0.05644152,128.73,128.69,8.81280036]
[1744828040265,47.41769424,128.72,128.68,27.69343234]
[1744828040458,47.41769424,128.7,128.65,110.767746]
[1744828040658,47.94,128.69,128.65,110.767746]
[1744828040857,7.7722,128.66,128.65,110.767746]
[1744828041066,47.94,128.69,128.65,110.767746]
[1744828041259,47.94,128.69,128.64,184.612911]
[1744828041260,47.41769424,128.66,128.64,184.612911]
[1744828041460,7.7728,128.65,128.64,58.46511002]
[1744828041956,47.94,128.69,128.64,58.46511002]
[1744828042263,0.05119577,128.68,128.66,0.05793095]
[1744828042563,0.05119577,128.68,128.66,7.82983095]
[1744828042765,0.05119577,128.68,128.66,0.05793095]
[1744828043163,7.82259577,128.68,128.66,0.05793095]
[1744828043364,0.05119577,128.68,128.66,0.05793095]
[1744828044063,47.94,128.73,128.66,0.05793095]
[1744828044268,47.94,128.73,128.66,47.47562519]
[1744828045065,55.7083,128.73,128.69,7.7703]
[1744828045265,47.94,128.73,128.66,47.47562519]
[1744828045468,7.7687,128.72,128.68,7.7705]
[1744828045668,47.94,128.73,128.66,47.47562519]
[1744828045870,607.05769424,128.77,128.66,47.47562519]
[1744828046172,47.94,128.76,128.66,47.47562519]
[1744828046363,47.41769424,128.73,128.66,0.05793095]
[1744828046575,47.41769424,128.75,128.66,0.05793095]
[1744828046870,47.94,128.76,128.66,0.05793095]
[1744828046871,47.94,128.76,128.68,47.41769424]
[1744828047066,47.94,128.76,128.66,0.05793095]
[1744828047472,7.7689,128.72,128.66,0.05793095]
[1744828047666,95.35769424,128.76,128.66,0.05793095]
[1744828047868,47.94,128.76,128.66,47.47562519]
[1744828048264,1.35229657,128.83,128.69,47.41769424]
[1744828048468,1.55255395,128.82,128.72,47.41769424]
[1744828048670,1.55255395,128.82,128.73,4.1982]
[1744828048865,1.55255395,128.82,128.74,47.41769424]
[1744828049064,559.62,128.85,128.73,4.1982]
[1744828049065,95.35769424,128.81,128.73,4.1982]
[1744828049971,47.94,128.81,128.73,4.1982]
[1744828050174,7.7642,128.8,128.75,7.7663]
[1744828050372,0.05306589,128.78,128.76,0.04901369]
[1744828053382,0.05306589,128.78,128.77,7.7656]
[1744828053678,0.05306589,128.78,128.76,0.04901369]
[1744828053882,0.05306589,128.78,128.76,7.81491369]
[1744828056081,0.05306589,128.78,128.76,0.04901369]
[1744828056484,0.05306589,128.78,128.77,7.7656]
[1744828056684,0.05306589,128.78,128.76,0.04901369]
[1744828056885,0.05306589,128.78,128.76,7.81461369]
[1744828057181,0.05306589,128.78,128.76,0.04901369]
[1744828057786,0.05306589,128.78,128.77,7.7656]
[1744828058484,0.05306589,128.78,128.76,0.04901369]
[1744828058884,0.05306589,128.78,128.77,7.7656]
[1744828059486,47.94,128.81,128.8,7.7638]
[1744828060085,607.4,128.85,128.76,29.17027518]
[1744828060477,607.4,128.85,128.79,0.05899104]
[1744828060478,0.05721219,128.82,128.79,0.05899104]
[1744828061181,7.82011219,128.82,128.79,0.05899104]
[1744828061477,0.05721219,128.82,128.79,7.82299104]
[1744828061987,0.05721219,128.82,128.79,0.05899104]
[1744828062184,559.3,128.91,128.8,29.17027518]
[1744828062389,47.78,128.9,128.82,29.17027518]
[1744828062891,29.17027518,128.89,128.78,29.17027518]
[1744828063187,29.17027518,128.87,128.77,8.3034]
[1744828063381,29.17027518,128.87,128.82,0.0505424]
[1744828063688,7.7618,128.84,128.82,0.0505424]
[1744828063982,55.5418,128.84,128.82,0.0505424]
[1744828064486,47.78,128.84,128.82,0.0505424]
[1744828064888,7.762,128.83,128.82,0.0505424]
[1744828065184,47.78,128.84,128.82,0.0505424]
[1744828065582,7.762,128.83,128.82,0.0505424]
[1744828065780,588.37027518,128.83,128.71,365.0]
[1744828065984,7.7662,128.76,128.69,29.17027518]
[1744828066183,7.7662,128.76,128.68,12.2322]
[1744828066388,76.95027518,128.77,128.68,12.2322]
[1744828066886,47.78,128.81,128.73,29.17027518]
[1744828067387,47.78,128.81,128.74,3.9345]
[1744828067587,47.78,128.81,128.76,7.766]
[1744828067786,47.78,128.81,128.74,3.9345]
[1744828067989,47.78,128.81,128.75,8.5146]
[1744828068488,76.95027518,128.81,128.71,0.05949627]
[1744828068787,29.17027518,128.77,128.71,0.05949627]
[1744828068992,47.78,128.76,128.71,0.05949627]
[1744828069294,55.5467,128.76,128.72,7.7682]
[1744828069592,47.78,128.76,128.71,0.05949627]
[1744828069788,47.78,128.76,128.73,7.7676]
[1744828069988,47.78,128.76,128.71,0.05949627]
[1744828070780,7.7681,128.73,128.71,0.05949627]
[1744828071187,47.78,128.76,128.71,0.05949627]
[1744828071791,7.7686,128.72,128.71,0.05949627]
[1744828071988,588.48501295,128.75,128.62,76.95027518]
[1744828072184,588.48501295,128.75,128.65,4.1941]
[1744828072394,0.05473777,128.75,128.68,29.17027518]
[1744828072587,588.51027518,128.81,128.72,29.17027518]
[1744828072588,47.78,128.8,128.72,29.17027518]
[1744828072893,7.7639,128.8,128.76,7.7658]
[1744828073089,47.78,128.84,128.76,29.17027518]
[1744828073293,47.78,128.84,128.78,29.17027518]
[1744828073594,47.78,128.84,128.76,29.17027518]
[1744828074196,47.78,128.89,128.73,4.3616]
[1744828074489,47.78,128.89,128.78,29.17027518]
[1744828075191,7.7617,128.84,128.8,7.7635]
[1744828075488,95.13765415,128.89,128.79,7.7641]
[1744828075694,47.40871387,128.83,128.73,4.3616]
[1744828075887,47.35765415,128.87,128.73,4.3616]
[1744828075888,47.78,128.82,128.73,4.3616]
[1744828076083,559.26,128.84,128.73,4.3616]
[1744828076084,7.7646,128.79,128.73,4.3616]
[1744828076294,47.78,128.81,128.73,4.3616]
[1744828076489,47.35765415,128.79,128.69,47.35765415]
[1744828076687,47.35765415,128.79,128.73,0.05474933]
[1744828076688,0.04929752,128.75,128.73,0.05474933]
[1744828076888,0.04929752,128.75,128.73,0.05002055]
[1744828077193,0.04929752,128.75,128.74,7.7674]
[1744828077697,607.04,128.84,128.74,7.76]
[1744828077887,607.04,128.84,128.74,55.41205415]
[1744828078082,7.7641,128.8,128.76,7.7659]
[1744828078287,607.04,128.84,128.76,7.7659]
[1744828078490,607.04,128.84,128.74,55.41205415]
[1744828078789,0.05752359,128.81,128.79,0.04976415]
[1744828079300,7.7641,128.8,128.79,0.04976415]
[1744828080091,0.05752359,128.81,128.79,0.04976415]
[1744828080295,47.78,128.88,128.79,47.4074183]
[1744828080495,55.5395,128.88,128.81,47.35765415]
[1744828080695,47.78,128.88,128.83,47.35765415]
[1744828081093,47.78,128.88,128.82,8.3931]
[1744828081297,47.78,128.88,128.84,0.05487003]
[1744828081487,7.7609,128.85,128.84,0.05487003]
[1744828081692,7.7609,128.85,128.78,8.3114]
[1744828081897,95.13765415,128.88,128.78,8.3114]
[1744828082093,7.7617,128.84,128.8,7.7635]
[1744828082296,7.7617,128.84,128.78,8.3114]
[1744828082497,95.13765415,128.88,128.78,8.3114]
[1744828082699,7.762,128.83,128.82,0.04960812]
[1744828082998,47.78,128.83,128.77,4.315]
[1744828083298,7.7641,128.8,128.77,4.315]
[1744828083499,47.78,128.83,128.77,4.315]
[1744828083999,0.05907583,128.81,128.79,0.05232798]
[1744828084199,47.66,128.87,128.79,0.05232798]
[1744828084399,7.7612,128.85,128.81,7.7629]
[1744828085199,0.05042141,128.84,128.82,0.05480418]
[1744828085390,47.66,128.87,128.82,0.05480418]
[1744828085593,559.28,128.9,128.83,47.35765415]
[1744828085795,567.0383,128.9,128.86,7.7598]
[1744828086002,559.28,128.9,128.84,4.2268]
[1744828086299,7.7599,128.87,128.83,7.7616]
[1744828086499,606.63765415,128.9,128.84,0.05656881]
[1744828086799,7.7601,128.87,128.86,0.05350877]
[1744828086992,606.63765415,128.9,128.85,0.05166496]
[1744828087188,47.35765415,128.86,128.73,47.35765415]
[1744828087398,7.763,128.82,128.78,0.05133055]
[1744828087599,7.763,128.82,128.79,0.05018524]
[1744828087799,7.7633,128.81,128.79,0.05018524]
[1744828087994,47.35765415,128.84,128.79,0.05018524]
[1744828088190,47.35765415,128.82,128.79,0.05018524]
[1744828088902,7.7635,128.81,128.79,0.05018524]
[1744828089394,7.7627,128.82,128.79,0.05018524]
[1744828089599,47.64,128.83,128.79,0.05018524]
[1744828089997,7.7605,128.86,128.79,0.05018524]
[1744828090300,7.7605,128.86,128.81,0.05675145]
[1744828090494,55.3998,128.87,128.83,7.7616]
[1744828090702,47.64,128.87,128.84,0.05180251]
[1744828091695,7.7608,128.85,128.84,0.05180251]
[1744828091901,47.35765415,128.86,128.78,4.0083]
[1744828092296,7.7613,128.85,128.78,4.0083]
[1744828092599,47.64,128.87,128.78,4.0083]
[1744828092802,55.3999,128.87,128.83,7.7617]
[1744828092992,0.05153008,128.86,128.84,0.05605438]
[1744828093401,7.7608,128.85,128.84,0.05605438]
[1744828096198,55.11845415,128.85,128.84,5.438e-05]
[1744828096503,55.11765415,128.85,128.76,7.7658]
[1744828096701,47.35765415,128.83,128.76,7.7658]
[1744828096898,47.64,128.82,128.74,12.3429]
[1744828097095,47.35765415,128.79,128.69,412.35765415]
[1744828097301,0.0493184,128.75,128.73,0.05161848]
[1744828097498,47.64,128.74,128.73,0.05347388]
[1744828097801,47.64,128.74,128.65,7.942]
[1744828098002,7.7683,128.73,128.65,7.942]
[1744828098199,47.64,128.74,128.65,7.942]
[1744828098405,606.49765415,128.73,128.65,7.942]
[1744828098595,559.14,128.73,128.68,7.771]
[1744828098795,0.05325573,128.7,128.68,7.8274114]
[1744828099000,0.05325573,128.7,128.68,0.0564114]
[1744828101309,7.7704,128.69,128.68,0.0564114]
[1744828101504,0.05325573,128.7,128.68,0.0564114]
[1744828101901,47.66,128.78,128.69,47.35765415]
[1744828102099,47.66,128.78,128.72,47.35765415]
[1744828102304,55.4251,128.78,128.74,7.7671]
[1744828102710,47.35765415,128.76,128.62,47.35765415]
[1744828103008,0.04989156,128.7,128.68,0.05486127]
[1744828103208,0.05827733,128.7,128.68,0.05632087]
[1744828103604,47.41593148,128.7,128.68,0.05632087]
[1744828104106,0.05827733,128.7,128.68,0.05632087]
[1744828105207,7.82827733,128.7,128.68,0.05632087]
[1744828105607,0.05827733,128.7,128.68,0.05632087]
[1744828105809,7.82837733,128.7,128.68,0.05632087]
[1744828106612,0.05827733,128.7,128.68,0.05632087]
[1744828106814,47.66,128.78,128.68,55.19397502]
[1744828107113,47.66,128.78,128.68,47.35765415]
[1744828107313,7.7672,128.75,128.71,7.7689]
[1744828107614,7.7672,128.75,128.68,47.35765415]
[1744828107810,0.05319253,128.73,128.7,0.05483731]
[1744828108008,0.05319253,128.73,128.7,0.05788362]
[1744828108910,47.71319253,128.73,128.7,0.05788362]
[1744828109614,7.7692,128.71,128.7,0.05788362]
[1744828110404,7.7692,128.71,128.7,8.362e-05]
[1744828112516,7.7713,128.68,128.64,12.0947]
[1744828112717,47.68,128.67,128.64,12.0947]
[1744828113106,47.68,128.67,128.65,7.7727]
[1744828113311,47.68,128.67,128.64,4.3216]
[1744828113512,47.73418075,128.67,128.64,4.37641897]
[1744828114117,47.73418075,128.67,128.65,7.7725]
[1744828114317,95.0918349,128.67,128.64,0.05481897]
[1744828114709,55.50618075,128.67,128.64,7.82811897]
[1744828115218,55.50608075,128.67,128.64,0.05481897]
[1744828115512,47.73418075,128.67,128.64,0.05481897]
[1744828116316,47.73418075,128.67,128.64,7.82791897]
[1744828116519,95.0918349,128.67,128.64,0.05481897]
[1744828116912,7.7728,128.65,128.64,0.05481897]
[1744828117113,55.13045415,128.65,128.64,0.05481897]
[1744828118217,47.35765415,128.65,128.64,0.05481897]
[1744828118721,55.13045415,128.65,128.64,0.05481897]
[1744828118921,95.0918349,128.67,128.64,0.05481897]
[1744828119221,47.73418075,128.67,128.64,0.05481897]
[1744828119823,95.0918349,128.67,128.64,0.05481897]
[1744828120322,7.7727,128.66,128.64,0.05481897]
[1744828120622,47.35765415,128.65,128.52,427.91905415]
[1744828120921,47.35765415,128.65,128.54,12.4361]
[1744828121124,47.68,128.67,128.57,47.35765415]
[1744828121620,47.68,128.67,128.63,7.7736]
[1744828121825,0.05086614,128.66,128.64,0.05261812]
[1744828122523,7.82346614,128.66,128.64,0.05261812]
[1744828123230,7.7728,128.65,128.64,0.05261812]
[1744828123424,7.7728,128.65,128.64,1.812e-05]
[1744828123425,55.13045415,128.65,128.64,1.812e-05]
[1744828123623,47.35765415,128.65,128.54,377.4361]
[1744828123824,7.7754,128.61,128.54,377.4361]
[1744828124324,7.776,128.6,128.54,377.4361]
[1744828124524,0.05701626,128.58,128.56,0.05486282]
[1744828125126,0.05701626,128.58,128.57,7.7774]
[1744828125322,0.05701626,128.58,128.56,0.05486282]
[1744828125727,102.69535415,128.57,128.56,0.05486282]
[1744828126221,94.91765415,128.57,128.5,8.5224]
[1744828126427,94.91765415,128.57,128.42,924.74]
[1744828126428,47.35765415,128.53,128.42,924.74]
[1744828126726,47.56,128.52,128.44,4.2805]
[1744828126924,47.35765415,128.51,128.44,4.2805]
[1744828127323,47.41235138,128.49,128.46,0.05739353]
[1744828127923,7.7837,128.47,128.46,0.05739353]
[1744828128119,55.3437,128.47,128.46,0.05739353]
[1744828129129,102.70135415,128.47,128.46,0.05739353]
[1744828130032,55.3437,128.47,128.46,0.05739353]
[1744828130329,47.56,128.47,128.46,0.05739353]
[1744828130528,94.91765415,128.47,128.46,0.05739353]
[1744828131329,102.70135415,128.47,128.46,0.03689353]
[1744828132330,47.56,128.47,128.46,0.03689353]
[1744828132526,0.05469723,128.49,128.46,0.03689353]
[1744828133132,560.28,128.54,128.46,0.03689353]
[1744828133331,47.6,128.53,128.46,4.0822]
[1744828133822,47.6,128.53,128.48,7.7829]
[1744828134229,0.0503358,128.52,128.5,7.7817]
[1744828134426,0.0503358,128.52,128.49,0.05862665]
[1744828134836,0.0503358,128.52,128.49,7.84072665]
[1744828135436,0.0503358,128.52,128.5,7.7818]
[1744828135933,47.6,128.53,128.5,7.7815]
[1744828136333,47.6,128.53,128.49,0.05862665]
[1744828136534,55.3807,128.53,128.49,7.84082665]
[1744828136835,47.6,128.53,128.49,7.84082665]
[1744828137030,7.7816,128.51,128.49,0.05862665]
[1744828137426,0.05204821,128.52,128.49,0.05862665]
[1744828137835,7.7819,128.5,128.49,0.05862665]
[1744828138636,0.05204821,128.52,128.49,0.05862665]
[1744828139540,7.7819,128.5,128.49,0.05862665]
[1744828139739,7.7819,128.5,128.49,2.665e-05]
[1744828140236,7.7855,128.44,128.41,369.3356]
[1744828140434,47.35765415,128.51,128.41,51.69325415]
[1744828140632,7.7827,128.49,128.45,7.7846]
[1744828140938,47.62,128.51,128.41,51.69325415]
[1744828141238,0.05808146,128.47,128.45,0.05880814]
[1744828141738,7.7843,128.46,128.45,0.05880814]
[1744828141939,55.4043,128.46,128.45,0.05880814]
[1744828142140,663.19765415,128.46,128.34,365.0]
[1744828142341,663.19765415,128.46,128.37,7.7897]
[1744828142342,7.7881,128.4,128.37,7.7897]
[1744828142733,47.35765415,128.42,128.36,8.6867]
[1744828142734,7.787,128.42,128.38,7.7888]
[1744828142930,47.35765415,128.44,128.36,8.6867]
[1744828143134,0.05828871,128.41,128.39,0.05662937]
[1744828143331,94.97765415,128.4,128.39,0.05662937]
[1744828143541,102.76565415,128.4,128.39,0.05662937]
[1744828144336,102.76565415,128.4,128.39,2.937e-05]
[1744828144641,7.791,128.35,128.31,12.4346]
[1744828144842,47.35765415,128.37,128.31,20.2276]
[1744828145140,47.35765415,128.35,128.31,8.3784]
[1744828145341,94.83765415,128.35,128.31,8.3784]
[1744828145737,0.05745975,128.34,128.32,0.04978335]
[1744828146236,7.7922,128.33,128.32,0.04978335]
[1744828146737,0.05745975,128.34,128.32,0.04978335]
[1744828147038,560.62,128.38,128.32,0.04978335]
[1744828147435,7.7911,128.35,128.32,0.04978335]
[1744828147642,560.62,128.38,128.32,0.04978335]
[1744828147643,47.35765415,128.37,128.32,0.04978335]
[1744828148042,0.05098663,128.36,128.32,0.04978335]
[1744828148236,47.35765415,128.35,128.32,0.04978335]
[1744828148442,47.5,128.34,128.32,0.04978335]
[1744828148741,7.7922,128.33,128.32,0.04978335]
[1744828148941,47.5,128.34,128.32,0.04978335]
[1744828149343,7.7922,128.33,128.32,0.04978335]
[1744828149640,47.5,128.34,128.32,0.04978335]
[1744828150036,0.05098663,128.36,128.32,0.04978335]
[1744828150344,0.05098663,128.36,128.34,7.7913]
[1744828151042,0.2439,128.48,128.34,102.5153083]
[1744828151347,47.35765415,128.51,128.4,47.35765415]
[1744828151539,7.7846,128.46,128.42,7.7865]
[1744828151740,47.52,128.47,128.42,7.7865]
[1744828151940,7.84282812,128.46,128.43,0.0577849]
[1744828152646,7.7853,128.45,128.43,0.0577849]
[1744828152945,0.05812812,128.46,128.43,0.0577849]
[1744828153144,47.35765415,128.45,128.43,0.0577849]
[1744828153547,55.13765415,128.45,128.35,4.1039]
[1744828153844,47.35765415,128.39,128.35,4.1039]
[1744828154048,47.5,128.4,128.35,4.1039]
[1744828154347,47.35765415,128.39,128.29,412.5]
[1744828154547,47.5,128.4,128.32,47.35765415]
[1744828154741,0.05555255,128.35,128.33,0.05669345]
[1744828155046,0.05391529,128.35,128.33,0.05669345]
[1744828155246,0.05391529,128.35,128.34,7.7916]
[1744828155445,47.5,128.4,128.33,11.95719345]
[1744828155746,47.5,128.4,128.33,4.15719345]
[1744828156345,47.35765415,128.44,128.33,4.15719345]
[1744828156346,47.5,128.44,128.34,47.35765415]
[1744828156548,0.05099379,128.4,128.38,0.05859464]
[1744828156748,47.5,128.39,128.38,0.05859464]
[1744828156949,55.2886,128.39,128.38,0.05859464]
[1744828157848,47.5,128.39,128.38,0.05859464]
[1744828158746,0.05099379,128.4,128.38,0.05859464]
[1744828158946,47.5,128.45,128.42,7.7867]
[1744828159147,47.5,128.49,128.42,47.35765415]
[1744828159349,47.5,128.49,128.43,8.2674]
[1744828160042,0.05137907,128.47,128.45,0.05433693]
[1744828160241,7.83537907,128.47,128.45,0.05433693]
[1744828160449,0.05137907,128.47,128.45,0.05433693]
[1744828160844,47.5,128.49,128.45,0.05433693]
[1744828161047,560.9,128.54,128.45,0.05433693]
[1744828161247,47.5,128.52,128.47,7.7837]
[1744828161650,47.5,128.52,128.48,7.7829]
[1744828161846,47.5,128.52,128.44,47.35765415]
[1744828162047,0.05244766,128.51,128.49,0.05839356]
[1744828162652,7.7819,128.5,128.49,0.05839356]
[1744828163049,7.7819,128.5,128.43,373.2674]
[1744828163050,47.41010181,128.51,128.43,8.2674]
[1744828163245,7.7855,128.44,128.43,4.0278]
[1744828163449,47.5,128.46,128.43,4.0278]
[1744828163653,47.5,128.5,128.43,4.0278]
[1744828163854,7.7831,128.48,128.43,4.0278]
[1744828164153,0.05408067,128.47,128.44,7.83918437]
[1744828164354,0.05408067,128.47,128.44,0.05398437]
[1744828164654,47.5,128.5,128.44,4.09528437]
[1744828164952,55.2821,128.5,128.44,4.09528437]
[1744828165357,47.5,128.5,128.44,4.09528437]
[1744828165847,0.05700756,128.48,128.44,4.09528437]
[1744828166154,0.05700756,128.48,128.46,7.784]
[1744828166552,0.05700756,128.48,128.44,4.09528437]
[1744828167056,0.05700756,128.48,128.44,0.05398437]
[1744828167953,7.7838,128.47,128.44,0.05398437]
[1744828168155,0.05700756,128.48,128.44,0.05398437]
[1744828168350,560.68,128.6,128.46,47.35765415]
[1744828168656,47.5,128.56,128.5,7.7819]
[1744828168954,7.78,128.54,128.5,7.7819]
[1744828169154,47.5,128.56,128.5,7.7819]
[1744828169355,0.05117694,128.54,128.52,0.05134746]
[1744828170154,7.7801,128.53,128.52,0.05134746]
[1744828170557,55.13765415,128.53,128.43,8.3589]
[1744828170753,47.35765415,128.48,128.43,4.0278]
[1744828170952,47.5,128.47,128.43,4.0278]
[1744828172159,0.05609542,128.46,128.44,0.05877804]
[1744828172369,7.7853,128.45,128.44,0.05877804]
[1744828172860,7.84059542,128.46,128.44,0.05877804]
[1744828173056,0.05609542,128.46,128.44,0.05877804]
[1744828173457,7.84069542,128.46,128.44,0.05877804]
[1744828174159,0.05609542,128.46,128.44,0.05877804]
[1744828174358,0.05609542,128.46,128.44,4.43137804]
[1744828174556,0.05609542,128.46,128.45,7.7849]
[1744828175260,0.05609542,128.46,128.44,4.43137804]
[1744828175762,0.05609542,128.46,128.45,7.7849]
[1744828176063,47.32,128.51,128.44,4.43137804]
[1744828176262,7.7824,128.5,128.46,7.784]
[1744828176461,7.7824,128.5,128.44,4.3726]
[1744828176962,47.32,128.51,128.44,4.3726]
[1744828177263,0.05500389,128.49,128.46,0.05358331]
[1744828178565,7.83790389,128.49,128.46,7.83758331]
[1744828178764,7.83790389,128.49,128.46,0.05358331]
[1744828178964,0.05500389,128.49,128.47,7.7836]
[1744828180165,0.05500389,128.49,128.46,0.05358331]
[1744828180166,7.83760389,128.49,128.46,7.83758331]
[1744828180366,7.83760389,128.49,128.46,0.05358331]
[1744828180367,0.05500389,128.49,128.46,0.05358331]
[1744828181466,7.83800389,128.49,128.46,0.05358331]
[1744828181863,0.05500389,128.49,128.46,0.05358331]
[1744828182266,47.35765415,128.48,128.37,8.0886]
[1744828182465,7.7858,128.44,128.37,8.0886]
[1744828182665,55.0858,128.44,128.41,7.7873]
[1744828183065,47.3,128.48,128.39,47.35765415]
[1744828183267,0.05479442,128.45,128.43,47.41273813]
[1744828183464,7.7828,128.49,128.43,47.41308286]
[1744828183767,47.35765415,128.5,128.4,416.4803]
[1744828184069,655.33765415,128.52,128.41,47.35765415]
[1744828184264,607.98,128.52,128.41,47.35765415]
[1744828184767,0.05112678,128.48,128.47,7.7837]
[1744828184966,0.05627675,128.49,128.46,0.05072246]
[1744828185167,0.05627675,128.49,128.47,7.7837]
[1744828185363,0.05627675,128.49,128.46,0.05072246]
[1744828185767,0.05627675,128.49,128.47,7.7836]
[1744828186264,0.05627675,128.49,128.47,7.7837]
[1744828186464,0.05627675,128.49,128.46,0.05072246]
[1744828186869,7.7837,128.47,128.46,0.05072246]
[1744828187469,55.1037,128.47,128.46,0.05072246]
[1744828188571,47.32,128.47,128.46,0.05072246]
[1744828189171,47.32,128.47,128.46,7.83502246]
[1744828189369,47.32,128.47,128.46,0.05072246]
[1744828190072,0.05627675,128.49,128.46,0.05072246]
[1744828191264,47.4139309,128.49,128.46,0.05072246]
[1744828191467,7.7831,128.48,128.46,0.05072246]
[1744828191874,0.05627675,128.49,128.46,0.05072246]
[1744828193275,7.7834,128.48,128.46,0.05072246]
[1744828193871,0.05627675,128.49,128.46,7.83462246]
[1744828194372,0.05627675,128.49,128.46,0.05072246]
[1744828194373,7.83917675,128.49,128.46,0.05072246]
[1744828194877,7.83917675,128.49,128.46,7.83492246]
[1744828195575,0.05627675,128.49,128.46,0.05072246]
[1744828195966,7.7837,128.47,128.46,0.05072246]
[1744828196169,0.05627675,128.49,128.46,0.05072246]
[1744828196672,7.7837,128.47,128.46,0.05072246]
[1744828197172,0.05627675,128.49,128.46,0.05072246]